bitfinex/quotes_BTCUSD_20260125
["timestamp","ask_amount","ask_price","bid_price","bid_amount"]
[1769299499123,0.03,89214.0,89206.0,0.00055986]
[1769299499324,0.03,89214.0,89206.0,0.05660957]
[1769299499528,0.03,89214.0,89206.0,0.01176986]
[1769299499826,0.03,89214.0,89206.0,0.00055986]
[1769299499980,0.03,89214.0,89207.0,0.00056022]
[1769299500320,0.02208712,89219.0,89207.0,0.00056022]
[1769299500321,0.03,89213.0,89207.0,0.00056022]
[1769299500523,0.03,89213.0,89208.0,0.00056022]
[1769299500725,0.01135494,89228.0,89204.0,0.00056022]
[1769299500928,0.21786917,89225.0,89204.0,0.00056022]
[1769299501243,0.01135494,89228.0,89204.0,0.00056022]
[1769299501244,0.03,89220.0,89204.0,0.00056022]
[1769299501416,0.34983189,89220.0,89204.0,0.01177047]
[1769299501613,0.34983189,89220.0,89204.0,0.00056022]
[1769299502018,0.03,89218.0,89204.0,0.00056022]
[1769299502248,0.03,89216.0,89205.0,0.0005602]
[1769299502447,0.03,89214.0,89205.0,0.0005602]
[1769299503969,0.03,89214.0,89205.0,0.01177033]
[1769299504126,0.31983189,89220.0,89205.0,0.01177033]
[1769299504127,0.03,89219.0,89205.0,0.01177033]
[1769299504342,0.03,89219.0,89205.0,0.0005602]
[1769299504831,0.1416175,89219.0,89205.0,0.0005602]
[1769299505243,0.03,89217.0,89206.0,0.0005627]
[1769299505461,0.03,89217.0,89207.0,0.00056315]
[1769299505776,0.1116175,89219.0,89202.0,0.29477105]
[1769299505777,0.03,89215.0,89203.0,0.00056315]
[1769299505979,0.03,89213.0,89203.0,0.00056315]
[1769299507073,0.03,89217.0,89202.0,0.2387187]
[1769299507373,0.03,89215.0,89202.0,0.2387187]
[1769299507582,0.03,89213.0,89202.0,0.2387187]
[1769299507950,0.03,89213.0,89203.0,0.01121038]
[1769299508144,0.03,89213.0,89203.0,0.06726208]
[1769299508383,0.03,89213.0,89204.0,0.01121025]
[1769299508589,0.02208712,89218.0,89205.0,0.06726058]
[1769299508590,0.03,89217.0,89205.0,0.06726058]
[1769299508818,0.03,89217.0,89206.0,0.01121]
[1769299509005,0.03,89217.0,89205.0,0.06726067]
[1769299509386,0.03,89217.0,89206.0,0.01121]
[1769299509590,0.03,89217.0,89204.0,0.06726154]
[1769299509905,0.03,89217.0,89204.0,0.01121025]
[1769299510406,0.03,89217.0,89204.0,0.06726119]
[1769299510909,0.03,89217.0,89205.0,0.01121013]
[1769299511114,0.03,89217.0,89204.0,0.01121025]
[1769299511268,0.03,89217.0,89203.0,0.01121038]
[1769299511475,0.03,89215.0,89202.0,0.2387187]
[1769299511710,0.03,89215.0,89202.0,0.22750819]
[1769299512043,0.03,89213.0,89203.0,0.01121038]
[1769299512160,0.03,89213.0,89202.0,0.2387187]
[1769299512364,0.03,89213.0,89203.0,0.01121038]
[1769299512589,0.03,89213.0,89204.0,0.01121025]
[1769299512785,0.03,89213.0,89203.0,0.01121038]
[1769299512981,0.03,89212.0,89205.0,0.01121013]
[1769299513403,0.03,89212.0,89206.0,0.01121]
[1769299513785,0.03,89212.0,89205.0,0.06726042]
[1769299513984,0.03,89216.0,89205.0,0.01121013]
[1769299514179,0.14169096,89216.0,89205.0,0.01121013]
[1769299514407,0.03,89214.0,89204.0,0.06726052]
[1769299514600,0.14169096,89214.0,89205.0,0.01121013]
[1769299514827,0.03,89212.0,89204.0,0.01121025]
[1769299515059,0.03,89212.0,89206.0,0.01121]
[1769299515207,0.03,89212.0,89205.0,0.06726079]
[1769299515408,0.03,89212.0,89204.0,0.01121025]
[1769299515833,0.03,89214.0,89204.0,0.01121025]
[1769299516550,0.03,89212.0,89204.0,0.01121025]
[1769299516849,0.14169096,89212.0,89204.0,0.01121025]
[1769299517152,0.03,89210.0,89204.0,0.01121025]
[1769299517359,0.03,89210.0,89203.0,0.06726213]
[1769299517574,0.03,89210.0,89204.0,0.01349513]
[1769299517736,0.03,89210.0,89204.0,0.06954638]
[1769299517938,0.03,89210.0,89206.0,0.06725972]
[1769299518141,0.03,89209.0,89207.0,0.01349468]
[1769299518549,0.03,89209.0,89207.0,0.0022848]
[1769299519137,0.03,89209.0,89207.0,0.06954377]
[1769299519834,0.03,89209.0,89207.0,0.0022848]
[1769299520171,0.03,89216.0,89208.0,0.00228476]
[1769299520378,0.11181601,89217.0,89208.0,0.00228476]
[1769299520379,0.03,89214.0,89208.0,0.00228476]
[1769299520705,0.09081601,89214.0,89208.0,0.00228476]
[1769299520903,0.31983189,89220.0,89208.0,0.01349451]
[1769299521692,0.03,89219.0,89211.0,0.01120938]
[1769299521873,0.03,89219.0,89212.0,0.00228465]
[1769299522289,0.03,89219.0,89212.0,0.0021157]
[1769299522477,0.03,89218.0,89212.0,0.0021157]
[1769299523500,0.03,89217.0,89211.0,0.00194675]
[1769299523696,0.03,89217.0,89211.0,0.01315613]
[1769299523906,0.03,89217.0,89211.0,0.00194675]
[1769299524606,0.03,89216.0,89211.0,0.01315613]
[1769299524989,0.42080501,89226.0,89215.0,0.01120887]
[1769299525187,0.33151064,89226.0,89215.0,0.01120887]
[1769299525726,0.33151064,89226.0,89214.0,0.06725366]
[1769299525929,0.03,89225.0,89214.0,0.06725366]
[1769299526125,0.03,89225.0,89214.0,0.011209]
[1769299526630,0.03,89225.0,89213.0,0.0672543]
[1769299526791,0.03,89225.0,89214.0,0.06725396]
[1769299527214,0.03,89225.0,89214.0,0.011209]
[1769299527946,0.03,89225.0,89213.0,0.06920167]
[1769299528249,0.31251064,89226.0,89213.0,0.00194737]
[1769299528453,0.31251064,89226.0,89212.0,0.01120925]
[1769299528609,0.31251064,89226.0,89213.0,0.00195775]
[1769299528957,0.53439093,89226.0,89212.0,0.00196295]
[1769299529157,0.22188029,89226.0,89211.0,0.00196818]
[1769299529300,0.33151064,89225.0,89211.0,0.00196818]
[1769299531170,0.33151064,89225.0,89211.0,0.01317756]
[1769299532136,0.33151064,89225.0,89211.0,0.06922441]
[1769299532337,0.33151064,89225.0,89212.0,0.0672553]
[1769299532538,0.11177298,89224.0,89213.0,0.00197108]
[1769299532741,0.03,89223.0,89213.0,0.00197108]
[1769299532940,0.03,89223.0,89213.0,0.01301125]
[1769299533176,0.03,89223.0,89213.0,0.00180213]
[1769299533493,0.03,89223.0,89213.0,0.01301125]
[1769299533707,0.03,89223.0,89213.0,0.05784739]
[1769299533922,0.03,89223.0,89213.0,0.01301125]
[1769299534214,0.03,89223.0,89214.0,0.011209]
[1769299534414,0.03,89223.0,89215.0,0.01155489]
[1769299534617,0.03,89223.0,89214.0,0.06725399]
[1769299534803,0.03,89223.0,89214.0,0.011209]
[1769299535003,0.03,89223.0,89217.0,0.01120862]
[1769299535207,0.03,89222.0,89216.0,0.01120875]
[1769299535795,0.03,89222.0,89217.0,0.00045716]
[1769299535991,0.35975305,89232.0,89217.0,0.01149684]
[1769299535992,0.55125239,89231.0,89217.0,0.01149684]
[1769299536411,0.03,89230.0,89217.0,0.01149684]
[1769299536748,0.35612595,89230.0,89217.0,0.01149684]
[1769299536934,0.35612595,89230.0,89217.0,0.00031421]
[1769299537093,0.35612595,89230.0,89217.0,0.01152283]
[1769299537458,0.35612595,89230.0,89220.0,0.28813461]
[1769299537684,0.35612595,89230.0,89217.0,0.01120862]
[1769299538001,0.35612595,89230.0,89219.0,0.01120837]
[1769299538207,0.35612595,89230.0,89220.0,0.01120824]
[1769299538558,0.35612595,89230.0,89219.0,0.06725014]
[1769299538756,0.35612595,89230.0,89219.0,0.01120837]
[1769299539322,0.35612595,89230.0,89218.0,0.00154303]
[1769299539506,0.35612595,89230.0,89217.0,0.01120862]
[1769299539707,0.35612595,89230.0,89218.0,0.00154308]
[1769299539904,0.35612595,89230.0,89218.0,0.01275158]
[1769299540139,0.35612595,89230.0,89218.0,0.06879399]
[1769299540355,0.35612595,89230.0,89218.0,0.00154308]
[1769299540561,0.35612595,89230.0,89216.0,0.06725248]
[1769299540562,0.35612595,89230.0,89217.0,0.00154309]
[1769299540714,0.35612595,89230.0,89217.0,0.01275171]
[1769299541581,0.35612595,89230.0,89217.0,0.00154309]
[1769299541875,0.35612595,89230.0,89217.0,0.01275171]
[1769299542079,0.35612595,89230.0,89218.0,0.05604244]
[1769299542377,0.35612595,89230.0,89219.0,0.00154564]
[1769299543770,0.28512595,89230.0,89220.0,0.00154561]
[1769299544268,0.28512595,89230.0,89217.0,0.00154564]
[1769299545006,0.28512595,89230.0,89216.0,0.00154564]
[1769299545575,0.28512595,89230.0,89215.0,0.00154564]
[1769299545773,0.28512595,89230.0,89216.0,0.05604369]
[1769299545995,0.28512595,89230.0,89217.0,0.01275422]
[1769299546537,0.28512595,89230.0,89217.0,0.06879727]
[1769299546877,0.28512595,89230.0,89218.0,0.0112085]
[1769299547078,0.28512595,89230.0,89219.0,0.00154556]
[1769299548129,0.03,89228.0,89218.0,0.0112085]
[1769299548737,0.03,89228.0,89219.0,0.01120837]
[1769299548931,0.03,89228.0,89218.0,0.0112085]
[1769299549467,0.03,89228.0,89217.0,0.06725131]
[1769299549670,0.03,89228.0,89219.0,0.01120837]
[1769299549950,0.03,89235.0,89222.0,0.01120799]
[1769299550328,0.03,89235.0,89223.0,0.01120787]
[1769299550532,0.03,89235.0,89222.0,0.01120799]
[1769299550918,0.03,89234.0,89221.0,0.06724832]
[1769299551119,0.03,89234.0,89221.0,0.01120812]
[1769299551648,0.03,89234.0,89220.0,0.28022226]
[1769299551803,0.03,89233.0,89221.0,0.01120812]
[1769299552219,0.03,89233.0,89220.0,0.28022228]
[1769299552479,0.03,89233.0,89221.0,0.01120812]
[1769299552632,0.32627365,89237.0,89221.0,0.01120812]
[1769299552633,0.30227365,89237.0,89221.0,0.01120812]
[1769299553004,0.03,89236.0,89220.0,0.28022247]
[1769299553605,0.03,89236.0,89221.0,0.01120812]
[1769299553809,0.03,89236.0,89220.0,0.22418125]
[1769299554006,0.03,89236.0,89221.0,0.01120812]
[1769299555004,0.03,89236.0,89221.0,0.06724871]
[1769299555523,0.03,89236.0,89221.0,0.01120812]
[1769299556728,0.03,89236.0,89220.0,0.28022212]
[1769299556892,0.03,89236.0,89222.0,0.01120799]
[1769299557296,0.03,89236.0,89221.0,0.01120812]
[1769299557513,0.03,89236.0,89221.0,0.0672487]
[1769299557717,0.03,89236.0,89221.0,0.01120812]
[1769299558294,0.09758152,89237.0,89221.0,0.01120812]
[1769299558496,0.09758152,89237.0,89220.0,0.21297301]
[1769299560429,0.09758152,89237.0,89221.0,0.01120812]
[1769299560635,0.09758152,89237.0,89222.0,0.06724769]
[1769299560783,0.09758152,89237.0,89222.0,0.01120799]
[1769299561732,0.03,89243.0,89223.0,0.21297301]
[1769299561952,0.03,89241.0,89224.0,0.52850979]
[1769299564522,0.03,89241.0,89224.0,0.52950979]
[1769299564688,0.03,89239.0,89224.0,0.52950979]
[1769299564891,0.03,89237.0,89225.0,0.0010001]
[1769299565122,0.03,89235.0,89225.0,0.0010001]
[1769299565388,0.03,89233.0,89225.0,0.0010001]
[1769299566548,0.03,89232.0,89225.0,0.0010001]
[1769299567525,0.03,89231.0,89225.0,0.0010001]
[1769299568661,0.03,89230.0,89225.0,0.33704845]
[1769299568867,0.0300906,89230.0,89225.0,0.33604835]
[1769299569167,0.02500338,89243.0,89230.0,0.008]
[1769299569168,0.11174488,89238.0,89230.0,0.008]
[1769299569371,0.0001477,89245.0,89231.0,0.55865605]
[1769299570570,0.33085633,89250.0,89231.0,0.55865605]
[1769299570778,0.03,89249.0,89231.0,0.2226077]
[1769299570936,0.03,89249.0,89232.0,0.33604835]
[1769299576087,0.61905616,89250.0,89232.0,0.33604835]
[1769299577031,0.85198932,89250.0,89232.0,0.33604835]
[1769299580455,0.85198932,89250.0,89233.0,0.23510169]
[1769299580653,0.85198932,89250.0,89233.0,0.56474048]
[1769299582417,0.11173262,89249.0,89233.0,0.56474048]
[1769299582763,0.11139477,89249.0,89233.0,0.56474048]
[1769299584403,0.11139477,89249.0,89233.0,0.32963879]
[1769299584605,0.11139477,89249.0,89234.0,0.23510169]
[1769299586678,0.11139477,89249.0,89234.0,0.56474048]
[1769299587710,0.11139477,89249.0,89230.0,0.23510169]
[1769299588055,0.11139477,89249.0,89234.0,0.23510169]
[1769299588262,0.11139477,89249.0,89234.0,0.56474048]
[1769299594351,0.11139477,89249.0,89235.0,0.31251459]
[1769299594512,0.03,89247.0,89237.0,0.31251459]
[1769299594714,0.14178895,89247.0,89237.0,0.31251459]
[1769299594919,0.03,89245.0,89237.0,0.31251459]
[1769299595962,0.03,89248.0,89237.0,0.31251459]
[1769299597363,0.14178895,89248.0,89237.0,0.31251459]
[1769299597579,0.03,89246.0,89237.0,0.31251459]
[1769299598504,0.14178895,89246.0,89237.0,0.31251459]
[1769299598802,0.03,89244.0,89237.0,0.31251459]
[1769299599100,0.14178895,89244.0,89237.0,0.31251459]
[1769299599306,0.03,89242.0,89237.0,0.31251459]
[1769299599502,0.14178895,89242.0,89237.0,0.31251459]
[1769299599808,0.03,89240.0,89237.0,0.31251459]
[1769299600767,0.03,89244.0,89237.0,0.31251459]
[1769299601438,0.03,89244.0,89236.0,0.22627621]
[1769299601759,0.03,89244.0,89236.0,0.22505028]
[1769299601959,0.03,89243.0,89236.0,0.22505028]
[1769299602159,0.14187847,89243.0,89236.0,0.22505028]
[1769299602395,0.03,89241.0,89236.0,0.22505028]
[1769299602620,0.14187847,89241.0,89236.0,0.22505028]
[1769299602776,0.03,89239.0,89236.0,0.22505028]
[1769299603035,0.25519982,89250.0,89236.0,0.22505028]
[1769299603236,0.11188144,89249.0,89236.0,0.22505028]
[1769299603430,0.11188144,89248.0,89236.0,0.22505028]
[1769299603652,0.11188144,89247.0,89236.0,0.22505028]
[1769299603947,0.03,89245.0,89236.0,0.22505028]
[1769299605091,0.03,89244.0,89232.0,0.31251459]
[1769299605240,0.14188144,89244.0,89233.0,0.01613926]
[1769299605447,0.03,89242.0,89233.0,0.01613926]
[1769299606554,0.03,89244.0,89233.0,0.01613926]
[1769299606769,0.14188144,89244.0,89233.0,0.01613926]
[1769299607108,0.03,89242.0,89233.0,0.01613926]
[1769299608078,0.03,89241.0,89233.0,0.01613926]
[1769299608940,0.14188144,89241.0,89233.0,0.01613926]
[1769299609138,0.03,89239.0,89233.0,0.01613926]
[1769299610142,0.03,89245.0,89233.0,0.01613926]
[1769299610761,0.06188206,89247.0,89233.0,0.01613926]
[1769299610958,0.31232519,89251.0,89233.0,0.01613926]
[1769299611168,0.03,89249.0,89233.0,0.01622985]
[1769299612150,0.03,89249.0,89233.0,0.32874444]
[1769299612371,0.03,89249.0,89233.0,0.53888139]
[1769299613522,0.03,89248.0,89235.0,0.31251459]
[1769299613699,0.03,89248.0,89236.0,0.5387908]
[1769299614541,0.03,89251.0,89236.0,0.5387908]
[1769299614740,0.03,89251.0,89233.0,9.059e-05]
[1769299614741,0.03,89251.0,89237.0,0.31251459]
[1769299615639,0.03,89253.0,89237.0,0.31251459]
[1769299620784,0.03,89250.0,89237.0,0.31251459]
[1769299621785,0.20592869,89254.0,89237.0,0.31251459]
[1769299621786,0.03,89248.0,89237.0,0.31251459]
[1769299622805,0.03,89246.0,89237.0,0.31251459]
[1769299623140,0.03,89244.0,89237.0,0.31251459]
[1769299623603,0.28801147,89250.0,89237.0,0.31251459]
[1769299624309,0.03,89249.0,89237.0,0.31251459]
[1769299624995,0.03,89248.0,89237.0,0.31251459]
[1769299626010,0.03,89247.0,89237.0,0.31251459]
[1769299627210,0.03,89252.0,89237.0,0.31251459]
[1769299627557,0.03,89249.0,89237.0,0.31251459]
[1769299629434,0.03,89247.0,89237.0,0.31251459]
[1769299629828,0.03,89247.0,89233.0,9.059e-05]
[1769299630551,0.03,89248.0,89233.0,9.059e-05]
[1769299631937,0.04120473,89248.0,89233.0,9.059e-05]
[1769299632162,0.03,89245.0,89233.0,9.059e-05]
[1769299633189,0.03,89244.0,89233.0,9.059e-05]
[1769299634280,0.03,89246.0,89233.0,9.059e-05]
[1769299635673,0.03,89244.0,89233.0,9.059e-05]
[1769299635853,0.14187128,89244.0,89233.0,9.059e-05]
[1769299636065,0.0894989,89247.0,89233.0,9.059e-05]
[1769299636066,0.03,89242.0,89233.0,9.059e-05]
[1769299636267,0.14187128,89242.0,89233.0,9.059e-05]
[1769299636493,0.03,89240.0,89233.0,9.059e-05]
[1769299636823,0.14187128,89240.0,89233.0,9.059e-05]
[1769299637112,0.03,89238.0,89234.0,0.51991919]
[1769299637287,0.03,89238.0,89234.0,0.3147207]
[1769299638185,0.03,89237.0,89234.0,0.3147207]
[1769299639222,0.03,89245.0,89235.0,0.01711398]
[1769299639415,0.03,89243.0,89235.0,0.01711398]
[1769299639629,0.14187149,89243.0,89235.0,0.01711398]
[1769299639856,0.03,89241.0,89235.0,0.01709256]
[1769299640041,0.14187149,89241.0,89235.0,0.01709256]
[1769299640239,0.03,89239.0,89235.0,0.01709256]
[1769299640469,0.03,89239.0,89233.0,9.059e-05]
[1769299640651,0.03,89239.0,89233.0,0.0224824]
[1769299640902,0.03,89239.0,89233.0,9.059e-05]
[1769299641089,0.03,89239.0,89233.0,0.02246108]
[1769299641310,0.03,89241.0,89233.0,0.02246108]
[1769299641471,0.12213788,89249.0,89233.0,0.02246108]
[1769299641668,0.18936577,89249.0,89233.0,0.02246108]
[1769299642071,0.13334248,89249.0,89233.0,0.02246108]
[1769299642273,0.12213788,89249.0,89233.0,0.02246108]
[1769299642480,0.03,89248.0,89233.0,0.02246108]
[1769299643681,0.03,89248.0,89234.0,0.02239156]
[1769299647997,0.04120473,89248.0,89234.0,0.02239156]
[1769299649800,0.03,89248.0,89234.0,0.02239156]
[1769299650554,0.04120473,89248.0,89234.0,0.02239156]
[1769299650736,0.03,89246.0,89234.0,0.02239156]
[1769299650915,0.04120561,89241.0,89223.0,0.0001477]
[1769299651231,0.28601147,89233.0,89223.0,0.0001477]
[1769299651416,0.0001012,89233.0,89223.0,0.0001477]
[1769299651814,0.01120686,89231.0,89223.0,0.0001477]
[1769299652000,0.03,89230.0,89223.0,0.0001477]
[1769299653523,0.03,89231.0,89223.0,0.0001477]
[1769299661093,0.0001012,89233.0,89223.0,0.0001477]
[1769299661310,0.36967846,89231.0,89223.0,0.0001477]
[1769299661726,0.03,89227.0,89223.0,0.0001477]
[1769299662935,0.03,89226.0,89223.0,0.0001477]
[1769299664076,0.31267846,89231.0,89223.0,0.0001477]
[1769299664948,0.03,89230.0,89223.0,0.0001477]
[1769299667238,0.03,89231.0,89223.0,0.0001477]
[1769299670982,0.03,89230.0,89223.0,0.0001477]
[1769299671907,0.03,89229.0,89223.0,0.0001477]
[1769299673013,0.03,89228.0,89223.0,0.0001477]
[1769299673799,0.05603277,89234.0,89223.0,0.0001477]
[1769299674003,0.03,89233.0,89223.0,0.0001477]
[1769299675140,0.03,89232.0,89223.0,0.0001477]
[1769299676201,0.03,89231.0,89223.0,0.0001477]
[1769299677236,0.03,89230.0,89223.0,0.0001477]
[1769299678242,0.03,89233.0,89223.0,0.0001477]
[1769299678821,0.04120661,89233.0,89223.0,0.0001477]
[1769299679065,0.09723992,89233.0,89223.0,0.0001477]
[1769299679267,0.04120661,89233.0,89223.0,0.0001477]
[1769299679573,0.03,89233.0,89223.0,0.0001477]
[1769299679768,0.31812694,89233.0,89223.0,0.0001477]
[1769299681094,0.37416027,89233.0,89223.0,0.0001477]
[1769299681298,0.03,89231.0,89223.0,0.0001477]
[1769299681501,0.04120686,89231.0,89223.0,0.0001477]
[1769299681702,0.03,89229.0,89223.0,0.0001477]
[1769299682804,0.03,89232.0,89223.0,0.0001477]
[1769299685712,0.14186239,89232.0,89223.0,0.0001477]
[1769299686694,0.28812694,89233.0,89223.0,0.0001477]
[1769299687693,6.39e-05,89234.0,89223.0,0.0001477]
[1769299699821,0.0300639,89234.0,89223.0,0.0001477]
[1769299699983,0.14190863,89234.0,89223.0,0.0001477]
[1769299700190,0.03,89232.0,89223.0,0.0001477]
[1769299701208,0.03,89231.0,89223.0,0.0001477]
[1769299701804,0.14184473,89231.0,89223.0,0.0001477]
[1769299702029,0.03,89229.0,89223.0,0.0001477]
[1769299703142,0.03,89228.0,89223.0,0.0001477]
[1769299703637,0.03,89228.0,89223.0,0.21961071]
[1769299704214,6.39e-05,89234.0,89223.0,0.21961071]
[1769299704420,0.11183912,89238.0,89223.0,0.21961071]
[1769299704581,0.1230451,89238.0,89223.0,0.21967461]
[1769299704763,0.11183912,89238.0,89223.0,0.21967461]
[1769299704966,0.1230451,89238.0,89223.0,0.21967461]
[1769299705178,0.03,89237.0,89223.0,0.21967461]
[1769299706435,0.14183912,89237.0,89223.0,0.21967461]
[1769299706636,0.03,89235.0,89223.0,0.21967461]
[1769299706811,0.14183912,89235.0,89223.0,0.21967461]
[1769299707014,0.03,89233.0,89223.0,0.21967461]
[1769299707215,0.14183912,89233.0,89223.0,0.21967461]
[1769299707396,0.03,89231.0,89223.0,0.21967461]
[1769299707595,0.14183912,89231.0,89223.0,0.21967461]
[1769299707838,0.03,89231.0,89223.0,0.21967461]
[1769299708503,0.03,89230.0,89223.0,0.21967461]
[1769299709466,0.03,89229.0,89223.0,0.21967461]
[1769299710529,0.03,89235.0,89223.0,0.21967461]
[1769299711786,0.04120636,89235.0,89223.0,0.21967461]
[1769299711934,0.03,89232.0,89223.0,0.0002116]
[1769299713467,0.14184175,89232.0,89223.0,0.0002116]
[1769299714686,0.14184175,89232.0,89223.0,0.20236103]
[1769299714861,0.14184175,89231.0,89223.0,0.20236103]
[1769299715059,0.03,89229.0,89223.0,0.20236103]
[1769299716167,0.03,89228.0,89223.0,0.20236103]
[1769299717192,0.03,89234.0,89223.0,0.20236103]
[1769299718199,0.03,89233.0,89223.0,0.20236103]
[1769299719202,0.05602957,89239.0,89223.0,0.20236103]
[1769299719203,0.03,89232.0,89223.0,0.20236103]
[1769299720323,0.03,89231.0,89223.0,0.20236103]
[1769299721852,0.03,89230.0,89223.0,0.20236103]
[1769299722806,0.03,89229.0,89223.0,0.20236103]
[1769299724402,0.03,89238.0,89223.0,0.20236103]
[1769299724766,0.54508463,89240.0,89223.0,0.20236103]
[1769299724965,0.54507452,89240.0,89223.0,0.20236103]
[1769299725168,0.01120586,89239.0,89223.0,0.20236103]
[1769299725699,0.04120586,89239.0,89223.0,0.20236103]
[1769299726291,0.03,89237.0,89223.0,0.20236103]
[1769299727492,0.54507539,89240.0,89223.0,0.20236103]
[1769299727493,0.03,89236.0,89223.0,0.20236103]
[1769299728617,0.03,89238.0,89223.0,0.20236103]
[1769299728782,0.03,89234.0,89223.0,0.20236103]
[1769299729431,0.03,89232.0,89223.0,0.20236103]
[1769299729631,0.14186389,89232.0,89223.0,0.20236103]
[1769299729993,0.03,89232.0,89223.0,0.20236103]
[1769299730338,0.03,89230.0,89223.0,0.20236103]
[1769299732616,0.03,89237.0,89223.0,0.20236103]
[1769299732947,0.03,89234.0,89223.0,0.20236103]
[1769299733106,0.14185829,89234.0,89223.0,0.20236103]
[1769299733441,0.03,89232.0,89223.0,0.20236103]
[1769299733646,0.14185829,89232.0,89223.0,0.20236103]
[1769299733891,0.03,89232.0,89223.0,0.20236103]
[1769299734444,0.03,89231.0,89223.0,0.20236103]
[1769299735427,0.03,89230.0,89223.0,0.20236103]
[1769299736588,0.03,89233.0,89223.0,0.20236103]
[1769299739372,0.03,89232.0,89223.0,0.20236103]
[1769299739759,0.14185894,89232.0,89223.0,0.20236103]
[1769299740463,0.08185894,89232.0,89223.0,0.20236103]
[1769299741280,0.03,89234.0,89223.0,0.20236103]
[1769299744042,0.03,89232.0,89223.0,0.20236103]
[1769299744925,0.03,89234.0,89223.0,0.20236103]
[1769299746434,0.03,89234.0,89223.0,0.0002116]
[1769299747013,0.04120649,89234.0,89223.0,0.0002116]
[1769299747576,0.03,89234.0,89223.0,0.0002116]
[1769299747784,0.04120649,89234.0,89223.0,0.0002116]
[1769299747928,0.03,89234.0,89223.0,0.0002116]
[1769299749538,0.04120649,89234.0,89223.0,0.0002116]
[1769299749737,0.03,89234.0,89223.0,0.0002116]
[1769299752162,0.03,89233.0,89223.0,0.0002116]
[1769299753294,0.03,89232.0,89223.0,0.0002116]
[1769299754444,0.03,89231.0,89223.0,0.0002116]
[1769299754602,0.14186393,89231.0,89223.0,0.0002116]
[1769299754802,0.03,89229.0,89223.0,0.0002116]
[1769299755719,0.15930733,89235.0,89223.0,0.0002116]
[1769299755906,0.04120649,89234.0,89223.0,0.0002116]
[1769299756593,0.03,89234.0,89223.0,0.0002116]
[1769299756762,0.04120649,89234.0,89223.0,0.0002116]
[1769299756962,0.03,89234.0,89223.0,0.0002116]
[1769299757369,0.03,89233.0,89223.0,0.0002116]
[1769299758182,0.03,89232.0,89223.0,0.0002116]
[1769299759222,0.03,89231.0,89223.0,0.0002116]
[1769299760426,0.03,89230.0,89223.0,0.0002116]
[1769299761446,0.04120636,89235.0,89223.0,0.0002116]
[1769299761749,0.03,89235.0,89223.0,0.0002116]
[1769299765949,0.03,89234.0,89223.0,0.0002116]
[1769299766931,0.03,89235.0,89223.0,0.0002116]
[1769299767566,0.03,89235.0,89223.0,0.51181498]
[1769299767770,0.14184952,89235.0,89223.0,0.0002116]
[1769299767938,0.14184952,89235.0,89225.0,0.19722815]
[1769299768541,0.03,89239.0,89228.0,0.31437523]
[1769299768866,0.03,89236.0,89230.0,0.31437523]
[1769299772658,0.03,89236.0,89230.0,0.3141065]
[1769299772907,0.03,89236.0,89230.0,0.31379088]
[1769299773649,0.00862567,89237.0,89230.0,0.31379088]
[1769299773794,0.03,89239.0,89230.0,0.31379088]
[1769299776150,0.03,89239.0,89230.0,0.31358133]
[1769299776352,0.03,89239.0,89230.0,0.31231851]
[1769299776658,0.03,89239.0,89230.0,0.30947658]
[1769299776857,0.03,89239.0,89230.0,0.30852909]
[1769299779599,0.03,89239.0,89230.0,0.19729869]
[1769299779803,0.03,89239.0,89230.0,0.19477063]
[1769299780004,0.03,89239.0,89230.0,0.19287431]
[1769299780157,0.03,89239.0,89230.0,0.19263031]
[1769299780555,0.14180249,89239.0,89230.0,0.19263031]
[1769299781274,0.08280249,89239.0,89230.0,0.19263031]
[1769299782416,0.4939025,89240.0,89230.0,0.19263031]
[1769299782623,0.4939025,89240.0,89229.0,0.19722815]
[1769299783218,0.4939025,89240.0,89229.0,0.19701545]
[1769299783380,0.4939025,89240.0,89229.0,0.19543487]
[1769299783587,0.4939025,89240.0,89229.0,0.19322192]
[1769299783788,0.4939025,89240.0,89229.0,0.19164115]
[1769299783986,0.4939025,89240.0,89229.0,0.19100882]
[1769299784323,0.4939025,89240.0,89229.0,0.1875308]
[1769299784523,0.4939025,89240.0,89229.0,0.18531733]
[1769299785690,0.46027683,89240.0,89229.0,0.18531733]
[1769299785934,0.03362567,89239.0,89229.0,0.18531733]
[1769299786516,0.03362567,89239.0,89229.0,0.1850005]
[1769299789058,0.45986469,89240.0,89229.0,0.1850005]
[1769299789212,0.49349036,89240.0,89229.0,0.1850005]
[1769299790144,0.24150392,89240.0,89229.0,0.1850005]
[1769299790350,0.03362567,89239.0,89229.0,0.1850005]
[1769299797505,0.14547583,89239.0,89229.0,0.1850005]
[1769299798013,0.11185016,89239.0,89229.0,0.1850005]
[1769299798304,0.03,89237.0,89229.0,0.1850005]
[1769299798906,0.03362567,89236.0,89229.0,0.1850005]
[1769299799069,0.03,89235.0,89229.0,0.1850005]
[1769299800003,0.14187571,89235.0,89229.0,0.1850005]
[1769299800207,0.03,89235.0,89229.0,0.1850005]
[1769299800676,0.1418761,89235.0,89229.0,0.1850005]
[1769299800860,0.03,89235.0,89229.0,0.1850005]
[1769299801261,0.1418761,89235.0,89229.0,0.1850005]
[1769299801609,0.00762567,89236.0,89229.0,0.1850005]
[1769299802028,0.03,89238.0,89229.0,0.1850005]
[1769299802230,0.03,89238.0,89225.0,0.32478045]
[1769299802439,0.14187652,89238.0,89225.0,0.52801896]
[1769299802638,0.03,89236.0,89225.0,0.32478045]
[1769299802840,0.03,89236.0,89226.0,0.20537092]
[1769299806428,0.03,89233.0,89223.0,0.0002116]
[1769299806670,0.31807902,89233.0,89223.0,0.0002116]
[1769299806864,0.32928563,89233.0,89223.0,0.0002116]
[1769299807249,0.03,89233.0,89223.0,0.0002116]
[1769299808453,0.04120661,89233.0,89223.0,0.0002116]
[1769299808673,0.15305694,89233.0,89223.0,0.0002116]
[1769299809384,0.14185033,89233.0,89223.0,0.0002116]
[1769299809692,0.03,89233.0,89223.0,0.0002116]
[1769299809898,0.03,89232.0,89223.0,0.0002116]
[1769299810873,0.03,89233.0,89223.0,0.0002116]
[1769299811200,0.04120661,89233.0,89223.0,0.0002116]